Cogmind - Beta 15 @@@ ROGUE MODE // 2025.10.17 @ 03:25:15 Player: Hidden Result: Destroyed by B-75 Beast with Heavy Machine Gun Performance ------------- Evolutions (3) 1500 Regions Visited (7) 1400 Robots Destroyed (67) 335 Value Destroyed (2609) 2609 Prototype IDs (23) 460 Alien Tech Used (0) 0 Bonus (84) 84 TOTAL SCORE: 6388 Bonus ------- High Alert Combat Kills 111 Friendly Fire -27 Cogmind --------- Core Integrity 0/700 Matter 300/300 Energy 322/350 System Corruption 5% Temperature Cool (0) Movement Core (250) Ox4 Location -7/Lower Caves Parts ------- > --- POWER (1) -------- (None) > --- PROPULSION (4) --- (None) > --- UTILITY (4) ------ Medium Storage Unit High-capacity Battery > --- WEAPON (4) ------- (None) > --- INVENTORY (10) --- High-capacity Matter Pod (151) Seismic Detector Shield Generator AWS/Autocannon Peak State ------------ > --- POWER ------------ Light Nuclear Core > --- PROPULSION ------- Carbon-fiber Leg Improved Titanium Leg Improved Titanium Leg Improved Titanium Leg > --- UTILITY ---------- Medium Storage Unit High-capacity Battery High-capacity Matter Pod Advanced Weight Redist. System > --- WEAPON ----------- AWS/Autocannon Heavy Missile Launcher > --- INVENTORY -------- Aluminum Leg Improved Aluminum Leg Advanced Weight Redist. System Seismic Detector Shield Generator Minigun Minigun Minigun Gauss Rifle Missile Launcher [Rating: 60] Favorites ----------- Power Ion Engine Engine Ion Engine Power Core Light Nuclear Core Propulsion Aluminum Leg Treads Light Treads Leg Aluminum Leg Utility Medium Storage Unit Device Heat Sink Storage Medium Storage Unit Protection Light Armor Plating Weapon Minigun Energy Gun Medium Laser Energy Cannon Beam Cannon Ballistic Gun Minigun Ballistic Cannon AWS/Autocannon Launcher Heavy Missile Launcher Build | -11 -10 -10 -10 -9 -8 -7 -7 ------- Run | Yrd Mat Min Exi Min Mat Fac Low Slots Evolved 6 | . . . . . 4 2 . Power . | . . . . . . . . Propulsion 2 | . . . . . 1 1 . Utility 2 | . . . . . 1 1 . Weapon 2 | . . . . . 2 . . Parts Attached 48 | 8 5 2 1 5 7 16 4 Power 5 | 1 . . . 1 . 2 1 Engine 3 | 1 . . . 1 . . 1 Core 2 | . . . . . . 2 . Reactor . | . . . . . . . . Propulsion 16 | 4 . 1 . 2 3 6 . Treads 2 | 2 . . . . . . . Leg 14 | 2 . 1 . 2 3 6 . Wheel . | . . . . . . . . Hover . | . . . . . . . . Flight . | . . . . . . . . Utility 11 | 1 3 . 1 . 2 3 1 Device 6 | . 2 . . . . 3 1 Storage 4 | 1 1 . 1 . 1 . . Processor . | . . . . . . . . Hackware . | . . . . . . . . Protection 1 | . . . . . 1 . . Artifact . | . . . . . . . . Weapon 16 | 2 2 1 . 2 2 5 2 Energy Gun 3 | 1 1 1 . . . . . Energy Cannon 1 | . 1 . . . . . . Ballistic Gun 9 | 1 . . . 2 1 4 1 Ballistic Cannon 1 | . . . . . 1 . . Launcher 2 | . . . . . . 1 1 Special Weapon . | . . . . . . . . Impact Weapon . | . . . . . . . . Slashing Weapon . | . . . . . . . . Piercing Weapon . | . . . . . . . . Special Melee Weapon . | . . . . . . . . Unidentified Prototypes . | . . . . . . . . Parts Lost 26 | . 2 2 . 4 1 2 15 Power 3 | . . . . 1 . 1 1 Propulsion 10 | . . 1 . 2 1 . 6 Utility 3 | . 1 . . . . . 2 Weapon 10 | . 1 1 . 1 . 1 6 Highest Loss Streak 7 | . 2 2 . 4 1 2 7 To Critical Strikes . | . . . . . . . . Average Backups 8 | 3 4 9 9 7 8 9 6 Power . | . 1 1 . . . . . Propulsion 1 | 1 . 1 1 . 1 1 1 Utility 4 | . 2 5 6 5 4 2 3 Weapon 2 | 1 . 1 1 1 2 4 2 Tool/Special . | . . . . . . . . Unused Backups 8 | . . . 2 1 2 2 1 Power 1 | . . . 1 . . . . Propulsion 2 | . . . . . 1 1 . Utility 3 | . . . . 1 1 . 1 Weapon 2 | . . . 1 . . 1 . Tool/Special . | . . . . . . . . Average Slot Usage (%) 89 | . 96 99 100 95 76 85 82 Engine 8 | . 14 14 14 12 9 3 1 Core 1 | . . . . . . 2 3 Leg 27 | . 27 27 28 27 22 29 24 Device 7 | . 11 14 13 . . 6 6 Storage 18 | . 14 14 14 28 18 20 22 Protection 1 | . . . . . 8 1 . Energy Gun 5 | . 14 13 14 . . . . Energy Cannon 5 | . 8 14 14 8 . . . Ballistic Gun 7 | . 4 . . 16 9 8 22 Ballistic Cannon 2 | . . . . . 9 5 . Launcher 1 | . . . . . . 3 . Peak Build Rating 60 | 6 8 8 10 17 51 60 43 Average Rating 30 | 3 6 7 8 12 47 50 34 On Entrance 17 | . 6 8 8 10 17 46 42 Naked Turns . | . . . . . . . . Heaviest Build 90 | 13 20 21 24 26 84 90 41 Greatest Support 84 | 20 20 20 20 30 50 84 75 Greatest Overweight (x) 4 | . . 1 1 1 2 1 4 Average Overweight (x) . | . . . 1 . 1 . . Largest Inventory Capacity 10 | 8 10 10 10 10 10 10 10 Average Capacity 9 | 6 8 10 10 10 10 10 10 Most Carried 10 | 6 8 10 10 10 10 10 10 Average Carried 9 | 3 4 9 9 9 8 9 8 Final Capacity 10 | 8 10 10 10 10 10 10 10 Final Carried 10 | 4 8 10 10 9 10 10 6 Class Distribution -------------------- 31% | Mutant 24% | Gunner 17% | Scavenger-Tank 15% | Commander-Mutant 10% | Tank Dominant Class ---------------- Mutant | -10/Materials Mutant | -10/Mines Commander-Mutant | -10/Exiles Commander-Mutant | -9/Mines Scavenger-Tank | -8/Materials Gunner | -7/Factory Gunner | -7/Lower Caves Resources | -11 -10 -10 -10 -9 -8 -7 -7 ----------- Run | Yrd Mat Min Exi Min Mat Fac Low Matter Collected 1692 | 244 58 62 10 73 168 752 325 Remotely . | . . . . . . . . Salvage Created 2026 | . 107 86 . 40 441 1154 198 Parts 84 | . 9 2 . 6 13 51 3 Haulers Intercepted . | . . . . . . . . Recyclers Shooed . | . . . . . . . . Parts Field Recycled . | . . . . . . . . Retrieved Matter . | . . . . . . . . Parts Self-Destructed 4 | . . . . . . . 4 Prevented . | . . . . . . . . Kills | -11 -10 -10 -10 -9 -8 -7 -7 ------- Run | Yrd Mat Min Exi Min Mat Fac Low Combat Hostiles Destroyed 54 | . 5 2 . 2 13 28 4 Guns 21 | . 4 . . 2 2 9 4 Cannons 29 | . 1 2 . . 11 15 . AOE 4 | . . . . . . 4 . Classes Destroyed 11 | . 2 1 . 2 5 1 . Worker 4 | . 1 . . 1 . 2 . Builder 4 | . . . . 1 . 3 . Operator 1 | . . . . . 1 . . Watcher 4 | . . . . . 1 3 . Swarmer 5 | . 5 . . . . . . Grunt 28 | . . 1 . . 7 17 3 Brawler 2 | . . . . . 1 1 . Sentry 7 | . . . . . 2 4 1 Demolisher 2 | . . . . 2 . . . Hunter 5 | . . . . . 3 2 . Programmer 3 | . . . . . . 3 . Thug 1 | . . . . . . 1 . Best Kill Streak 8 | . 3 2 . 4 6 8 3 Combat Bots Only 7 | . 3 2 . 2 5 7 3 Max Kills in Single Turn 3 | . 2 1 . 2 1 3 1 Gunslinging . | . . . . . . . . Exploded 1 | . . . . . . 1 . Melee . | . . . . . . . . Uniques/NPCs Destroyed 1 | . . 1 . . . . . YI-UF0 (-10/Mines) Combat | -11 -10 -10 -10 -9 -8 -7 -7 -------- Run | Yrd Mat Min Exi Min Mat Fac Low Hostile Shots Fired 392 | . 37 16 . 8 25 138 168 Missed 135 | . 11 5 . . 10 50 59 Hits 257 | . 26 11 . 8 15 88 109 Melee 4 | . . . . . . 1 3 Projectile 253 | . 26 11 . 8 15 87 106 AOE 18 | . 1 7 . 10 . . . Critical Strikes 6 | . . . . . . 3 3 Damage Taken 4201 | . 357 259 . 367 231 1180 1807 Core 960 | . 34 87 . 89 31 105 614 Absorbed by Shields 104 | . . . . . . 104 . Regen/Repaired (Parts) 58 | . 58 . . . . . . Core Remaining (%) 70 | 100 . . . 16 94 . . Volleys Fired 112 | . 12 8 . 5 20 42 25 Largest 4 | . 2 2 . 2 1 4 4 Hottest 103 | . 100 100 . 51 28 103 103 Shots Fired 340 | . 23 14 . 7 60 173 63 Gun 228 | . 18 6 . 7 20 118 59 Cannon 101 | . 5 8 . . 40 48 . Launcher 11 | . . . . . . 7 4 Special . | . . . . . . . . Kinetic 297 | . 5 . . 7 60 166 59 Thermal 31 | . 17 14 . . . . . Explosive 11 | . . . . . . 7 4 Electromagnetic 1 | . 1 . . . . . . Robot Hit Streak 20 | . 3 10 . 5 20 12 6 Robot Miss Streak 6 | . 2 1 . 6 6 5 4 Penetration Max 1 | . . . . . . 1 . Secondary Targets 1 | . . . . . . 1 . Max Gunslinging Chain 1 | . . . . . . 1 . Autonomous 89 | . . . . . 40 49 . Shots Hit Robots 216 | . 12 12 . 6 46 96 44 Core Hits 92 | . 6 4 . 9 12 47 14 Critical Kills 2 | . . . . . 1 . 1 Critical Parts Destroyed 1 | . . . . . . 1 . Critical Strikes 16 | . . . . . 6 9 1 Destroy 3 | . . . . . 1 1 1 Blast 13 | . . . . . 5 8 . Melee Attacks . | . . . . . . . . Impact . | . . . . . . . . Slashing . | . . . . . . . . Piercing . | . . . . . . . . Sneak Attacks . | . . . . . . . . Combat Hostiles . | . . . . . . . . Follow-up Attacks . | . . . . . . . . Damage Inflicted 9017 | . 167 181 . 90 2869 4719 991 Guns 2339 | . 132 57 . 90 144 1156 760 Cannons 5861 | . 35 124 . . 2716 2986 . Explosions 808 | . . . . . . 577 231 Melee . | . . . . . . . . Ramming 9 | . . . . . 9 . . Kinetic 7908 | . 56 . . 90 2860 4142 760 Thermal 279 | . 98 181 . . . . . Explosive 808 | . . . . . . 577 231 Electromagnetic 13 | . 13 . . . . . . Impact . | . . . . . . . . Slashing . | . . . . . . . . Piercing . | . . . . . . . . Highest Corruption 5 | . . . . . . 5 5 Average Corruption 4 | . . . . . . 3 5 Corruption Purged . | . . . . . . . . Corruption Blocked . | . . . . . . . . Effects 58 | . . . . . . 39 19 Message Errors 11 | . . . . . . 8 3 Matter Fused 11 | . . . . . . 8 3 Heat Flow Errors 8 | . . . . . . 3 5 Energy Discharges 5 | . . . . . . 4 1 Parts Rejected 1 | . . . . . . 1 . Data Loss (minor) 8 | . . . . . . 5 3 Data Loss (major) 3 | . . . . . . 2 1 Misfires 5 | . . . . . . 5 . Alerts 3 | . . . . . . 1 2 Weapon Failures 3 | . . . . . . 2 1 Overload Shots . | . . . . . . . . Overflow Damage 923 | . . . . . 369 554 . Projectiles 875 | . . . . . 369 506 . Explosions 48 | . . . . . . 48 . Melee . | . . . . . . . . Knockbacks 21 | . . . . . 12 9 . Impact . | . . . . . . . . Kinetic 20 | . . . . . 12 8 . Secondary 1 | . . . . . . 1 . Self-Inflicted Damage 308 | . . . . . . 308 . Shots 6 | . . . . . . 6 . Rammed . | . . . . . . . . Targets Rammed 1 | . . . . . 1 . . Kicked 1 | . . . . . 1 . . Crushed . | . . . . . . . . Highest Temperature 354 | . 27 78 . . . 296 354 Average Temperature 111 | . 14 40 . . . 103 166 Received Heat Transfer 974 | . 12 33 . . 90 317 522 Effects 2 | . . . . . . 1 1 Energy Bleed 1 | . . . . . . 1 . Damage (minor) 1 | . . . . . . . 1 Siege Activations . | . . . . . . . . Martial Activations . | . . . . . . . . Shielding Activations . | . . . . . . . . Robots Disrupted . | . . . . . . . . Combat Hostiles . | . . . . . . . . Robots Corrupted . | . . . . . . . . Combat Hostiles . | . . . . . . . . Parts Fried . | . . . . . . . . Impact Corruptions . | . . . . . . . . Robots Melted . | . . . . . . . . Combat Hostiles . | . . . . . . . . Parts Melted 1 | . 1 . . . . . . Heat Transferred 608 | . 224 384 . . . . . Parts Sabotaged . | . . . . . . . . Parts Stolen . | . . . . . . . . Parts Stripped . | . . . . . . . . Power Chain Reactions . | . . . . . . . . Alert | -11 -10 -10 -10 -9 -8 -7 -7 ------- Run | Yrd Mat Min Exi Min Mat Fac Low Maximum Alert Level 2 | . . . . . . 2 . Low Security (%) 63 | 100 100 100 . 100 100 23 . Level 1 24 | . . . . . . 51 . Level 2 11 | . . . . . . 24 . Level 3 . | . . . . . . . . Level 4 . | . . . . . . . . Level 5 . | . . . . . . . . High Security . | . . . . . . . . Max Security . | . . . . . . . . Peak Influence 552 | . 61 20 . 36 197 552 . Initial 49 | . . . . . 9 49 . Average 157 | . 19 1 . 2 83 296 . Influence Increases 1815 | . 141 35 . 72 423 1034 110 Destroy 0b10 Robot/C 1060 | . 100 20 . 40 260 560 80 Destroy 0b10 Robot/NC 65 | . 5 . . 10 10 40 . Destroy Leader 258 | . 20 . . 10 82 146 . Allied During Kill 12 | . . . . 12 . . . Successful Hack 4 | . . . . . 4 . . Disable Machine 90 | . . . . . . 90 . Destroy Structure 131 | . 1 . . . 7 123 . Lose Combat Pursuer 195 | . 15 15 . . 60 75 30 Influence Decreases 1815 | . 141 35 . 46 341 596 656 Entered New Map 279 | . . . . . 17 59 203 Time Decay 1290 | . 121 25 . 10 314 517 303 Lost Part 220 | . 20 10 . 10 10 20 150 Lost Ally 26 | . . . . 26 . . . Squads Dispatched 16 | . 1 . . 1 4 10 . Investigation 7 | . 1 . . 1 3 2 . Extermination 3 | . . . . . . 3 . Reinforcement 4 | . . . . . 1 3 . Assault . | . . . . . . . . Garrison 2 | . . . . . . 2 . Intercept . | . . . . . . . . Searches Triggered . | . . . . . . . . Construction Impeded . | . . . . . . . . Haulers Reinforced 2 | . . . . . . 2 . Active Scanning Responses . | . . . . . . . . Cargo Convoy Interrupts . | . . . . . . . . Stealth | -11 -10 -10 -10 -9 -8 -7 -7 --------- Run | Yrd Mat Min Exi Min Mat Fac Low Distress Signals 2 | . . . . . 1 1 . Communications Jammed . | . . . . . . . . Distress Signals . | . . . . . . . . Times Spotted 76 | . 8 4 . 5 19 33 7 Peak Tracking Total 8 | . 3 3 . 3 4 8 4 Tactical Retreats 12 | . 1 1 . . 4 4 2 Traps | -11 -10 -10 -10 -9 -8 -7 -7 ------- Run | Yrd Mat Min Exi Min Mat Fac Low Traps Triggered 8 | . 1 . . . 1 6 . Indirectly . | . . . . . . . . Trap Hack Attempts . | . . . . . . . . Triggered . | . . . . . . . . Disarmed . | . . . . . . . . Reprogrammed . | . . . . . . . . Reused . | . . . . . . . . Traps Extracted . | . . . . . . . . Installed . | . . . . . . . . Triggered . | . . . . . . . . Machines | -11 -10 -10 -10 -9 -8 -7 -7 ---------- Run | Yrd Mat Min Exi Min Mat Fac Low Machines Disabled 6 | . . . . . . 6 . Max in Single Turn 2 | . . . . . . 2 . Machines Repaired . | . . . . . . . . Machines Dismantled . | . . . . . . . . Machines Sabotaged . | . . . . . . . . Overloaded Fab Kills . | . . . . . . . . Hacking | -11 -10 -10 -10 -9 -8 -7 -7 --------- Run | Yrd Mat Min Exi Min Mat Fac Low Machines Accessed 10 | . 1 . 5 1 1 2 . Terminals . | . . . . . . . . Fabricators . | . . . . . . . . Repair Stations 2 | . 1 . . . . 1 . Recycling Units . | . . . . . . . . Scanalyzers 2 | . . . . . 1 1 . Garrison Access . | . . . . . . . . Total Hacks 65 | . 3 . 50 1 5 6 . Successful 57 | . 2 . 50 1 4 . . Failed 8 | . 1 . . . 1 6 . Catastrophic . | . . . . . . . . Database Lockouts . | . . . . . . . . Manual 1 | . . . 1 . . . . Terminals . | . . . . . . . . Fabricators . | . . . . . . . . Repair Stations 6 | . 3 . . . . 3 . Recycling Units . | . . . . . . . . Scanalyzers 8 | . . . . . 5 3 . Garrison Access . | . . . . . . . . Terminal Hacks 51 | . . . 50 1 . . . Record 49 | . . . 49 . . . . Open Door 1 | . . . . 1 . . . Proto ID Catalog 1 | . . . 1 . . . . Fabricator Hacks . | . . . . . . . . Repair Station Hacks 2 | . 2 . . . . . . Scan Component 1 | . 1 . . . . . . Repair 1 | . 1 . . . . . . Recycling Unit Hacks . | . . . . . . . . Scanalyzer 4 | . . . . . 4 . . Insert Component 3 | . . . . . 3 . . Analyze 1 | . . . . . 1 . . Garrison Access Hacks . | . . . . . . . . Unauthorized Hacks . | . . . . . . . . Terminals . | . . . . . . . . Fabricators . | . . . . . . . . Repair Stations . | . . . . . . . . Recycling Units . | . . . . . . . . Scanalyzers . | . . . . . . . . Garrison Access . | . . . . . . . . Data Cores Recovered 1 | . . . . . 1 . . Used . | . . . . . . . . Hacking Detections 4 | . 1 . . . 1 2 . Full Trace Events 4 | . 1 . . . 1 2 . Feedback Events . | . . . . . . . . Feedback Blocked . | . . . . . . . . Robot Schematics Acquired . | . . . . . . . . Robots Built . | . . . . . . . . Authchips . | . . . . . . . . Time . | . . . . . . . . Total Robot Build Rating . | . . . . . . . . Part Schematics Acquired 1 | . . . . . 1 . . Parts Built . | . . . . . . . . Authchips . | . . . . . . . . Time . | . . . . . . . . Total Part Build Rating . | . . . . . . . . Parts Repaired 1 | . 1 . . . . . . Time 26 | . 26 . . . . . . Parts Recycled . | . . . . . . . . Recycled Matter . | . . . . . . . . Retrieved Matter . | . . . . . . . . Retrieved Components . | . . . . . . . . Parts Scanalyzed 1 | . . . . . 1 . . Part Schematics Acquired 1 | . . . . . 1 . . Parts Damaged . | . . . . . . . . Bothacking | -11 -10 -10 -10 -9 -8 -7 -7 ------------ Run | Yrd Mat Min Exi Min Mat Fac Low Used RIF Installer . | . . . . . . . . Robots Hacked . | . . . . . . . . Non-combat . | . . . . . . . . Combat . | . . . . . . . . Robot Hacks Applied . | . . . . . . . . Relay Couplers Released . | . . . . . . . . Fabnet Peak Effective % . | . . . . . . . . Robots Rewired 5 | . . . 5 . . . . Allies Hacked . | . . . . . . . . Hacks Repelled . | . . . . . . . . Allies | -11 -10 -10 -10 -9 -8 -7 -7 -------- Run | Yrd Mat Min Exi Min Mat Fac Low Total Allies 5 | . . . 5 . . . . Largest Group 5 | . . . 5 5 . . . Highest-Rated Group 66 | . . . 66 66 . . . Highest-Rated Ally 21 | . . . 21 21 . . . Total Orders . | . . . . . . . . Ally Attacks 8 | . . . . 8 . . . Total Damage 92 | . . . . 92 . . . Kills . | . . . . . . . . Allies Corrupted . | . . . . . . . . Allies Melted . | . . . . . . . . Intel | -11 -10 -10 -10 -9 -8 -7 -7 ------- Run | Yrd Mat Min Exi Min Mat Fac Low Active Infowar (turns) 76 | . 76 . . . . . . Seismic 76 | . 76 . . . . . . Robot Analysis Total . | . . . . . . . . Derelict Logs Recovered 4 | . . 2 . 1 . . 1 Drone Launches . | . . . . . . . . Drone Recoveries . | . . . . . . . . Exploration | -11 -10 -10 -10 -9 -8 -7 -7 ------------- Run | Yrd Mat Min Exi Min Mat Fac Low Turns Passed 5858 | 67 361 608 1137 355 744 1906 680 Spaces Moved 3001 | 48 222 407 554 164 300 872 434 Core 48 | 12 . . . . . . 36 Treads 2 | 2 . . . . . . . Legs 2951 | 34 222 407 554 164 300 872 398 Wheels . | . . . . . . . . Hover . | . . . . . . . . Flight . | . . . . . . . . Fastest Speed 50 | 50 120 120 190 120 190 127 100 Average Speed 166 | 104 120 132 190 182 219 176 134 Slowest Speed 260 | 160 120 190 190 190 260 197 250 Overloaded Moves . | . . . . . . . . Propulsion Burnouts . | . . . . . . . . Robots Hopped . | . . . . . . . . Potential Cave-ins . | . . . . . . . . Cave-ins Triggered . | . . . . . . . . Exploration Rate (%) 44 | 4 44 85 92 36 20 19 53 Regions Visited 7 Branch Regions 4 Pre-discovered Areas 2 | . . 1 1 . . . . Known Exits Taken 1 | . . . . . 1 . . Unknown Exits Taken 6 | 1 1 1 1 1 . 1 . Scrap Searched 3 | . . 1 . . . . 2 Spaces Dug 21 | . . . . . 2 19 . Terrain Destroyed 199 | . . . . . 6 168 25 Melee . | . . . . . . . . Projectile 16 | . . . . . 5 11 . AOE 182 | . . . . . . 157 25 Terrain Rammed . | . . . . . . . . Walls Destroyed . | . . . . . . . . Machines Disabled . | . . . . . . . . Actions | -11 -10 -10 -10 -9 -8 -7 -7 --------- Run | Yrd Mat Min Exi Min Mat Fac Low Total 3702 | 63 292 462 640 212 367 1175 491 Wait 379 | . 42 40 . 33 20 219 25 Move 2994 | 47 221 406 553 163 299 871 434 Hop . | . . . . . . . . Pick Up 41 | 6 8 4 1 1 10 11 . Fast Attach 20 | 6 3 1 1 5 1 3 . Attach 23 | 2 1 1 . 1 5 9 4 Detach 4 | . . . . . 3 1 . Swap 16 | . 2 1 . . 3 8 2 Drop 31 | 2 3 1 4 4 5 11 1 Fire 112 | . 12 8 . 5 20 42 25 Melee . | . . . . . . . . Ram . | . . . . . . . . Kick 1 | . . . . . 1 . . Crush . | . . . . . . . . Escape Stasis . | . . . . . . . . Rewire 81 | . . . 81 . . . . Trap . | . . . . . . . . Miscellaneous . | . . . . . . . . Route ------- -11/Scrapyard -10/Materials -10/Mines (discovered 2 exits: [*Mat] / *Exi) -10/Exiles (discovered 2 exits: *Min x2) -9/Mines -8/Materials -7/Factory -7/Lower Caves History --------- Turn | Location | Event 14 | -11/Scrapyard | Discovered new exit (range 15) 68 | -11/Scrapyard | Entered Materials 291 | -10/Materials | Discovered new exit (range 10) 315 | -10/Materials | Build established: Mutant 319 | -10/Materials | Repaired Aluminum Leg 429 | -10/Materials | Entered Mines 451 | -10/Mines | Learned location of Storage (-9) 567 | -10/Mines | Discovered new exit (range 13) 580 | -10/Mines | Learned Materials emergency access door positions 716 | -10/Mines | YI-UF0 nonchalantly dropped a Grenade Launcher on the ground 883 | -10/Mines | Destroyed YI-UF0 1029 | -10/Mines | Deemed a non-threat by the Exiles lab entrance 1029 | -10/Mines | Discovered new exit (range 5) 1037 | -10/Mines | Entered Exiles 1037 | -10/Exiles | Found Exiles lab destroyed 1068 | -10/Exiles | Discovered new exit (range 15) 1645 | -10/Exiles | Learned location of Zion (-7) 1804 | -10/Exiles | Opened EX-Vault 1817 | -10/Exiles | Found AWS/Autocannon 1891 | -10/Exiles | Build established: Commander-Mutant 2153 | -10/Exiles | Discovered new exit (range 14) 2174 | -10/Exiles | Entered Mines 2174 | -9/Mines | Accompanied by 5 allies 2198 | -9/Mines | Learned location of 1 exit from Materials 2401 | -9/Mines | Met a Derelict shopkeep closing up shop 2484 | -9/Mines | Assembled infested the area 2489 | -9/Mines | Assisted by a Guerilla fighting off Assembled 2491 | -9/Mines | Core integrity fell below 50% 2492 | -9/Mines | Discovered new exit (range 11) 2501 | -9/Mines | Core integrity fell below 20% 2529 | -9/Mines | Lost 4 parts (1p2n1w) 2529 | -9/Mines | Lost 3 allies 2529 | -9/Mines | Entered Materials 2529 | -8/Materials | Evolved 4 slots: Propulsion x1, Utility x1, Weapon x2 2530 | -8/Materials | Identified exit to Factory 2978 | -8/Materials | Build established: Scavenger-Tank 3273 | -8/Materials | Entered Factory 3273 | -7/Factory | Evolved 2 slots: Propulsion x1, Utility x1 3763 | -7/Factory | Destroyed 7 combat bots 4015 | -7/Factory | Build established: Tank 4420 | -7/Factory | Allied Derelicts emerged from ambush trap array 4473 | -7/Factory | Build established: Gunner 4578 | -7/Factory | AWS/Autocannon suddenly broke down 4782 | -7/Factory | P-60 Hacker assimilated allied WU-T27(g) 5020 | -7/Factory | Garrison activated, responded to threat 5136 | -7/Factory | Discovered new exit (range 15) 5179 | -7/Factory | Entered Lower Caves 5280 | -7/Lower Caves | Encountered a Warlord checkpoint 5341 | -7/Lower Caves | Attracted the attention of an 0b10 checkpoint 5442 | -7/Lower Caves | Learned 4 Factory zone layouts 5671 | -7/Lower Caves | Lost 7 parts (1p3n3w) 5682 | -7/Lower Caves | Spotted B-75 Beast 5787 | -7/Lower Caves | Core integrity fell below 50% 5802 | -7/Lower Caves | Core integrity fell below 20% 5832 | -7/Lower Caves | Lost 7 parts (3n2u2w) 5859 | -7/Lower Caves | Destroyed by B-75 Beast with Heavy Machine Gun Last Messages --------------- emitted. 05731_ System corrupted: Heat flow error (+226). 05751_ System corrupted: Heat flow error (+240). 05767_ Carbon-fiber Leg destroyed. 05770_ Imp. Titanium Leg destroyed. 05770_ Knocked back. 05770_ Imp. Titanium Leg destroyed. 05772_ The unstable cave ceiling collapses. 05773_ Missile Launcher destroyed. 05773_ Knocked back. 05774_ Acquired 5 matter. 05783_ Flak Gun destroyed. 05783_ Critical hit (Blast). 05783_ Knocked back. 05795_ Adv. Weight Redist. System destroyed. 05802_ The unstable cave ceiling collapses. 05813_ :A7WVDWOP1MSIWUVQ029QA|LWI7|M 9AAV 05833_ Acquired 18 matter. 05844_ System corrupted: Heat flow error (+135). Map ----- +----------------------------------------------------+ | ???????????????## #### "#??????????? | | ?????????? #???### % % % #" %"#??????????? | | ??????????# #????##### % %%# "#??????????? | | ??????????? #???????#" # ##??????????? | | ???????????# ????????# % ## ###?????????? | | ???????????# ????????## %# ##????????? | | ???????????# ##???????##%% % #????????? | | ???????????# ##??????## % #????????? | | ???????????? #?????## # #????????? | | ????????????? #??#### #????????? | | ??????????????# ##?# ""## % ##????????? | | ?????????????## ### ";"##### ## #?????????? | | ###??????????# "# #????######%##?????????? | | #??????????# #" #?###??????##??????????? | | ##?????????# #;#? ##?????????????????? | | ##????????# ## #####?????????????? | | ########## #?????????????? | | #?????????????? | | #### ## ??????????????? | | ???### ### #?????????????????? | | ?????# ####?## #?????????????????? | | ?????### ##?????## #?????????????????? | | ???????# #???????# ##?????????????????? | | #####??# #???????# ##??????????????????? | | #### #???????# ##???????????????????? | | #???????## @ ##????????????????????? | | #????????## ##?????????????????????? | | # #### ##?????????#### #??????????????????????? | | # #??# ##????????????# #??????????????????????? | | # ##?# ##???????????m ??????????????????????? | | #?## #??????????? ?????????????????????? | | #??## #??????????## ?????????????????????? | | ##### #???????????## ????????????????????? | | # %###??????????## ##???????????????????? | | ## ######????#?? ##????????????????????? | | ## ### #### ##? #?????????????????????? | | # #### # #? #?????????????????????? | | #?###### #????????????????????? | | ##?????# ## # #? ?????????????????????? | | #?????# ##?????? ?????????##?#????????? | | #??#### ##????? #????##### #???????? | | #### ##?????????## ##?????? | | ##??##???## ##???? | | ### #??## #???? | | ####### ### #??? #???? | | #######?????## ## #???# ? #???? | | ##????????????# ###### #?? ????? | | #?????????????# ## ##?# ????? | | #?????????????## ## ### ????? | | ##??????????????#### ### ## #????? | +----------------------------------------------------+ Best States ------------- Heat Dissipation 35 Energy Generation 16 Energy Capacity 540 Matter Stores 500 Matter Capacity 500 Sight Range 16 Terrain Scan Density 10 Additional Mass Support 9 Armor Coverage 150 Evasion (%) 55 Recoil Reduction 1 Item Schematics ----------------- Flexi-carbon Leg | -8/Materials | Scanalyzed Robot Schematics ------------------ None Fabricated ------------ Nothing Repaired ---------- Aluminum Leg | 35% | -10/Materials Alien Tech Used ----------------- None Achievements -------------- I Survived The Infestation Maybe Next Time I'll Detach My Launcher The More The Merrier Challenges ------------ None Game ------ Seed StealthModifiedTube Manual? 0 Play Time 00:45:56 Cumulative 8.0 hours Start 2025.10.17 @ 02:37:51 End 2025.10.17 @ 03:25:15 Sessions 1 Manual Loads 0 Difficulty Rogue Special Mode None Game No. 13 Rogue 13 Adventurer 0 Explorer 0 Win Type - Total 0 Types 0/0/0/0/0/0/0/0/0/0 Lore% 7 Gallery% 13 Achievement% 14 Wizard Run 0 Options --------- Layout 1 ASCII 0 Keyboard 0 Movement Mouse Keybinds 0 Fullscreen 1 Font 24/X11 Map View 50x35 Zoom Use 0% Tactical HUD 1 Map Filters NONE Filters NONE Steam 1 RUN: 653f625e-4f7d-4aa5-ab28-02d9a94024c8